Cogmind - Beta 12 @@@ ROGUE MODE // 2023.04.08 @ 21:01:25 Player: Exp. Geonium Core Result: Destroyed by 8R-AWN with 8R-AWN's Boregun Performance ------------- Evolutions (1) 500 Regions Visited (5) 1000 Robots Destroyed (34) 170 Value Destroyed (830) 830 Prototype IDs (26) 520 Alien Tech Used (0) 0 Bonus (373) 373 TOTAL SCORE: 3393 Bonus ------- High Alert Combat Kills 73 Aligned with FarCom 300 Cogmind --------- Core Integrity 0/400 Matter 116/300 Energy 95/100 System Corruption 14% Temperature Cool (0) Movement Core (150) Ox2 Location -9/Exiles Parts ------- > --- POWER (1) -------- (None) > --- PROPULSION (3) --- (None) > --- UTILITY (3) ------ Salvage Targeting Computer > --- WEAPON (2) ------- Autogun 8R-AWN's Boregun > --- INVENTORY (5) ---- Humpback Improved Trap Extractor (0/6) Improved Grenade Launcher Peak State ------------ > --- POWER ------------ Light Nuclear Core > --- PROPULSION ------- Wheel Wheel > --- UTILITY ---------- Salvage Targeting Computer Advanced Targeting Computer Cloak of Protection > --- WEAPON ----------- Autogun Autogun > --- INVENTORY -------- Nuclear Core Nuclear Core Nuclear Core Autogun [Rating: 23] Favorites ----------- Power Ion Engine Engine Ion Engine Power Core Light Nuclear Core Propulsion Aluminum Leg Treads Light Treads Leg Aluminum Leg Wheel Wheel Utility Large Storage Unit Device Improved Heat Sink Storage Large Storage Unit Processor Salvage Targeting Computer Protection Light Armor Plating Weapon Autogun Ballistic Gun Autogun Launcher Rocket Launcher Special Melee Weapon Improved Datajack Build | -11 -10 -10 -9 -9 -9 ------- Run | Jun Mat Min Mat Min Exi Slots Evolved 2 | . . . 2 . . Power . | . . . . . . Propulsion 1 | . . . 1 . . Utility 1 | . . . 1 . . Weapon . | . . . . . . Parts Attached 43 | . 1 4 16 12 10 Power 4 | . . . 2 2 . Engine 2 | . . . 1 1 . Core 2 | . . . 1 1 . Reactor . | . . . . . . Propulsion 11 | . . . 9 2 . Treads 3 | . . . 3 . . Leg 5 | . . . 5 . . Wheel 3 | . . . 1 2 . Hover . | . . . . . . Flight . | . . . . . . Utility 15 | . 1 2 3 4 5 Device 5 | . . 1 1 . 3 Storage 5 | . . 1 . 2 2 Processor 4 | . 1 . 1 2 . Hackware . | . . . . . . Protection 1 | . . . 1 . . Artifact . | . . . . . . Weapon 13 | . . 2 2 4 5 Energy Gun . | . . . . . . Energy Cannon . | . . . . . . Ballistic Gun 10 | . . 1 1 3 5 Ballistic Cannon . | . . . . . . Launcher 2 | . . . 1 1 . Special Weapon . | . . . . . . Impact Weapon . | . . . . . . Slashing Weapon . | . . . . . . Piercing Weapon . | . . . . . . Special Melee Weapon 1 | . . 1 . . . Unidentified Prototypes 1 | . . . . . 1 Parts Lost 16 | . . . 2 9 5 Power 2 | . . . 1 1 . Propulsion 6 | . . . 1 3 2 Utility 4 | . . . . 3 1 Weapon 4 | . . . . 2 2 Highest Loss Streak 3 | . . . 1 3 3 To Critical Strikes 2 | . . . . . 2 Average Slot Usage (%) 85 | . 93 94 93 86 66 Engine 7 | . 14 14 8 6 . Core 3 | . . . 1 4 9 Treads 6 | . . . 7 17 . Leg 11 | . 28 28 19 . . Wheel 8 | . . . 3 12 16 Device 2 | . . . 6 . 3 Storage 10 | . 14 14 11 11 6 Processor 12 | . 8 8 7 12 20 Ballistic Gun 20 | . 28 27 20 21 9 Naked Turns . | . . . . . . Heaviest Build 35 | 14 14 30 35 35 25 Greatest Support 60 | 20 20 20 60 60 20 Greatest Overweight (x) 4 | . . 1 3 1 4 Average Overweight (x) . | . . . . . . Largest Inventory Capacity 35 | . 8 15 15 15 35 Average Capacity 12 | . 8 14 15 12 10 Most Carried 15 | . 6 15 15 15 15 Average Carried 11 | . 6 11 14 11 7 Final Capacity 15 | 8 8 15 15 8 5 Final Carried 15 | 6 6 15 15 8 4 Class Distribution -------------------- 98% | Mutant Dominant Class ---------------- Mutant | -10/Materials Mutant | -10/Mines Mutant | -9/Materials Mutant | -9/Mines Mutant | -9/Exiles Resources | -11 -10 -10 -9 -9 -9 ----------- Run | Jun Mat Min Mat Min Exi Matter Collected 1618 | 200 . 92 501 545 280 Remotely . | . . . . . . Salvage Created 1435 | . . 95 980 274 86 Parts 56 | . . 3 46 7 . Haulers Intercepted 3 | . . . 3 . . Recyclers Shooed 1 | . . . 1 . . Parts Field Recycled . | . . . . . . Retrieved Matter . | . . . . . . Parts Self-Destructed . | . . . . . . Prevented . | . . . . . . Kills | -11 -10 -10 -9 -9 -9 ------- Run | Jun Mat Min Mat Min Exi Combat Hostiles Destroyed 43 | . . 3 18 17 5 Guns 32 | . . 3 13 11 5 AOE 11 | . . . 5 6 . Classes Destroyed 12 | . . 2 8 2 . Worker 3 | . . . 3 . . Tunneler 1 | . . . 1 . . Hauler 3 | . . . 3 . . Recycler 1 | . . . 1 . . Operator 1 | . . . 1 . . Watcher 1 | . . . 1 . . Swarmer 6 | . . 1 5 . . Grunt 12 | . . 2 9 1 . Duelist 2 | . . . 1 1 . Sentry 3 | . . . 3 . . Demolisher 1 | . . . . 1 . Assembled 19 | . . . . 14 5 Best Kill Streak 14 | . . 3 14 6 4 Combat Bots Only 6 | . . 3 5 6 4 Max Kills in Single Turn 6 | . . 1 6 3 1 Gunslinging 1 | . . . 1 . . Exploded 5 | . . . 5 3 . Melee . | . . . . . . Uniques/NPCs Destroyed . | . . . . . . Combat | -11 -10 -10 -9 -9 -9 -------- Run | Jun Mat Min Mat Min Exi Damage Taken 2795 | . . 184 506 1371 734 Core 482 | . . 73 79 165 165 Absorbed by Shields . | . . . . . . Core Remaining (%) 85 | 100 . 70 . . . Volleys Fired 159 | . 4 8 50 54 43 Largest 2 | . 2 2 2 2 2 Hottest 53 | . 40 40 48 48 53 Shots Fired 286 | . 8 16 91 91 80 Gun 281 | . 8 16 90 87 80 Cannon . | . . . . . . Launcher 5 | . . . 1 4 . Special . | . . . . . . Kinetic 281 | . 8 16 90 87 80 Thermal . | . . . . . . Explosive 5 | . . . 1 4 . Electromagnetic . | . . . . . . Robot Hit Streak 19 | . 1 13 19 11 11 Robot Miss Streak 4 | . 3 2 2 4 3 Penetration Max . | . . . . . . Secondary Targets 4 | . . 1 2 1 . Max Gunslinging Chain 1 | . . 1 1 1 . Shots Hit Robots 186 | . 2 13 62 54 55 Core Hits 94 | . 1 5 38 33 17 Critical Kills 2 | . . . 2 . . Critical Parts Destroyed 1 | . . . 1 . . Critical Strikes 6 | . . . 3 . 3 Destroy 6 | . . . 3 . 3 Melee Attacks . | . . . . . . Impact . | . . . . . . Slashing . | . . . . . . Piercing . | . . . . . . Sneak Attacks . | . . . . . . Combat Hostiles . | . . . . . . Follow-up Attacks . | . . . . . . Damage Inflicted 3537 | . 23 156 1345 1151 862 Guns 2920 | . 23 156 1064 815 862 Cannons . | . . . . . . Explosions 593 | . . . 272 321 . Melee . | . . . . . . Ramming 24 | . . . 9 15 . Kinetic 2920 | . 23 156 1064 815 862 Thermal . | . . . . . . Explosive 593 | . . . 272 321 . Electromagnetic . | . . . . . . Impact . | . . . . . . Slashing . | . . . . . . Piercing . | . . . . . . Highest Corruption 14 | . . . . 14 14 Average Corruption 14 | . . . . 14 14 Corruption Purged . | . . . . . . Corruption Blocked . | . . . . . . Effects 56 | . . . . 32 24 Message Errors 13 | . . . . 6 7 Matter Fused 16 | . . . . 11 5 Heat Flow Errors 11 | . . . . 7 4 Energy Discharges 3 | . . . . 2 1 Data Loss (minor) 8 | . . . . 4 4 Data Loss (major) 2 | . . . . . 2 Alerts 2 | . . . . 1 1 Weapon Failures 1 | . . . . 1 . Overload Shots . | . . . . . . Overflow Damage 5 | . . . . 5 . Projectiles . | . . . . . . Explosions 5 | . . . . 5 . Melee . | . . . . . . Knockbacks 1 | . . . . 1 . Impact 1 | . . . . 1 . Kinetic . | . . . . . . Secondary . | . . . . . . Self-Inflicted Damage 8 | . . . 1 7 . Shots 2 | . . . 1 1 . Rammed 2 | . . . . 2 . Targets Rammed 3 | . . . 1 2 . Kicked 1 | . . . 1 . . Crushed . | . . . . . . Highest Temperature 273 | . . 2 4 241 273 Average Temperature 59 | . . 2 2 66 59 Received Heat Transfer 354 | . . 63 189 102 . Siege Activations . | . . . . . . Robots Corrupted . | . . . . . . Combat Hostiles . | . . . . . . Parts Fried . | . . . . . . Impact Corruptions . | . . . . . . Robots Melted . | . . . . . . Combat Hostiles . | . . . . . . Parts Melted . | . . . . . . Heat Transferred . | . . . . . . Parts Sabotaged . | . . . . . . Parts Stolen . | . . . . . . Parts Stripped . | . . . . . . Power Chain Reactions . | . . . . . . Missiles Intercepted . | . . . . . . Alert | -11 -10 -10 -9 -9 -9 ------- Run | Jun Mat Min Mat Min Exi Peak Influence 559 | . 6 111 559 220 . Initial 161 | . . 1 . 161 . Average 146 | . 2 50 303 111 . Maximum Alert Level 2 | . . . 2 1 . Low Security (%) 76 | . 100 100 22 99 . Level 1 18 | . . . 60 . . Level 2 4 | . . . 16 . . Level 3 . | . . . . . . Level 4 . | . . . . . . Level 5 . | . . . . . . High Security . | . . . . . . Max Security . | . . . . . . Squads Dispatched 5 | . 2 . 3 . . Investigation 3 | . 1 . 2 . . Extermination . | . . . . . . Reinforcement 2 | . 1 . 1 . . Assault . | . . . . . . Garrison . | . . . . . . Intercept . | . . . . . . Searches Triggered . | . . . . . . Construction Impeded . | . . . . . . Haulers Reinforced . | . . . . . . Active Scanning Responses . | . . . . . . Cargo Convoy Interrupts . | . . . . . . Stealth | -11 -10 -10 -9 -9 -9 --------- Run | Jun Mat Min Mat Min Exi Distress Signals 2 | . . . 2 . . Communications Jammed . | . . . . . . Distress Signals . | . . . . . . Times Spotted 55 | . . 5 25 19 6 Peak Tracking Total 9 | . . 4 9 6 9 Tactical Retreats 2 | . . 1 1 . . Traps | -11 -10 -10 -9 -9 -9 ------- Run | Jun Mat Min Mat Min Exi Traps Triggered 3 | . 1 1 1 . . Indirectly . | . . . . . . Trap Hack Attempts 11 | . . 11 . . . Triggered . | . . . . . . Disarmed . | . . . . . . Reprogrammed 1 | . . 1 . . . Reused 1 | . . . . . 1 Traps Extracted 1 | . . 1 . . . Installed 1 | . . . . . 1 Triggered . | . . . . . . Most Traps Carried 1 | . . 1 1 1 1 Exploded 3 | . . . . . 3 Machines | -11 -10 -10 -9 -9 -9 ---------- Run | Jun Mat Min Mat Min Exi Machines Disabled 5 | . . . . . 5 Max in Single Turn 2 | . . . . . 2 Machines Repaired . | . . . . . . Machines Sabotaged . | . . . . . . Overloaded Fab Kills . | . . . . . . Hacking | -11 -10 -10 -9 -9 -9 --------- Run | Jun Mat Min Mat Min Exi Machines Accessed 7 | . 1 1 2 1 2 Terminals 3 | . 1 . 1 1 . Fabricators . | . . . . . . Repair Stations . | . . . . . . Recycling Units 1 | . . . 1 . . Scanalyzers . | . . . . . . Garrison Access . | . . . . . . Total Hacks 13 | . 4 1 5 1 2 Successful 8 | . 1 1 3 1 2 Failed 4 | . 2 . 2 . . Catastrophic . | . . . . . . Database Lockouts 1 | . 1 . . . . Manual 6 | . 4 . 1 . 1 Terminals 8 | . 4 . 3 1 . Fabricators . | . . . . . . Repair Stations . | . . . . . . Recycling Units 2 | . . . 2 . . Scanalyzers . | . . . . . . Garrison Access . | . . . . . . Terminal Hacks 6 | . 1 1 1 1 2 Record 1 | . . . . . 1 Robot Analysis 1 | . 1 . . . . Prototype ID Bank 1 | . . . 1 . . Open Door 1 | . . 1 . . . Zone Layout 1 | . . . . 1 . EX-Prototype ID Bank 1 | . . . . . 1 Fabricator Hacks . | . . . . . . Repair Station Hacks . | . . . . . . Recycling Unit Hacks 1 | . . . 1 . . Report Inventory 1 | . . . 1 . . Scanalyzer . | . . . . . . Garrison Access Hacks . | . . . . . . Unauthorized Hacks 1 | . . . 1 . . Terminals . | . . . . . . Fabricators . | . . . . . . Repair Stations . | . . . . . . Recycling Units 1 | . . . 1 . . Tunnel 1 | . . . 1 . . Scanalyzers . | . . . . . . Garrison Access . | . . . . . . Data Cores Recovered . | . . . . . . Used . | . . . . . . Hacking Detections 2 | . 1 . 1 . . Full Trace Events . | . . . . . . Feedback Events . | . . . . . . Feedback Blocked . | . . . . . . Robot Schematics Acquired . | . . . . . . Robots Built . | . . . . . . Authchips . | . . . . . . Time . | . . . . . . Total Robot Build Rating . | . . . . . . Part Schematics Acquired . | . . . . . . Parts Built . | . . . . . . Authchips . | . . . . . . Time . | . . . . . . Total Part Build Rating . | . . . . . . Parts Repaired . | . . . . . . Time . | . . . . . . Parts Recycled . | . . . . . . Recycled Matter . | . . . . . . Retrieved Matter . | . . . . . . Retrieved Components . | . . . . . . Parts Scanalyzed . | . . . . . . Part Schematics Acquired . | . . . . . . Parts Damaged . | . . . . . . Bothacking | -11 -10 -10 -9 -9 -9 ------------ Run | Jun Mat Min Mat Min Exi Used RIF Installer . | . . . . . . Robots Hacked . | . . . . . . Non-combat . | . . . . . . Combat . | . . . . . . Robot Hacks Applied . | . . . . . . Relay Couplers Released . | . . . . . . Fabnet Peak Effective % . | . . . . . . Robots Rewired . | . . . . . . Allies Hacked . | . . . . . . Hacks Repelled . | . . . . . . Allies | -11 -10 -10 -9 -9 -9 -------- Run | Jun Mat Min Mat Min Exi Total Allies . | . . . . . . Largest Group . | . . . . . . Highest-Rated Group . | . . . . . . Highest-Rated Ally . | . . . . . . Total Orders . | . . . . . . Ally Attacks . | . . . . . . Total Damage . | . . . . . . Kills . | . . . . . . Allies Corrupted . | . . . . . . Allies Melted . | . . . . . . Intel | -11 -10 -10 -9 -9 -9 ------- Run | Jun Mat Min Mat Min Exi Robot Analysis Total 1 | . 1 . . . . Derelict Logs Recovered 3 | . . 1 . 2 . Drone Launches . | . . . . . . Drone Recoveries . | . . . . . . Exploration | -11 -10 -10 -9 -9 -9 ------------- Run | Jun Mat Min Mat Min Exi Turns Passed 2718 | . 70 617 620 799 612 Spaces Moved 1618 | 1 48 296 285 521 467 Core 24 | . . . . . 24 Treads 358 | . . . 88 270 . Legs 465 | 1 48 296 120 . . Wheels 771 | . . . 77 251 443 Hover . | . . . . . . Flight . | . . . . . . Fastest Speed 50 | 120 120 120 110 80 50 Average Speed 126 | 120 120 173 149 121 88 Slowest Speed 250 | 120 120 190 190 160 250 Overloaded Moves . | . . . . . . Propulsion Burnouts . | . . . . . . Robots Hopped . | . . . . . . Cave-ins Triggered 1 | . . . . 1 . Exploration Rate (%) 39 | 2 13 63 30 67 63 Regions Visited 5 Branch Regions 3 Pre-discovered Areas 3 | . . . 1 1 1 Known Exits Taken . | . . . . . . Unknown Exits Taken 5 | 1 1 1 1 1 . Scrap Searched 5 | . . 2 . 3 . Spaces Dug . | . . . . . . Terrain Destroyed 45 | . . . 12 31 2 Melee . | . . . . . . Projectile 1 | . . . 1 . . AOE 42 | . . . 11 31 . Terrain Rammed . | . . . . . . Walls Destroyed . | . . . . . . Machines Disabled . | . . . . . . Actions | -11 -10 -10 -9 -9 -9 --------- Run | Jun Mat Min Mat Min Exi Total 2062 | . 52 384 408 610 608 Wait 152 | . . 56 33 6 57 Move 1613 | . 47 295 284 520 467 Hop . | . . . . . . Pick Up 44 | . . 8 11 11 14 Fast Attach 14 | . 1 . 3 5 5 Attach 15 | . . 1 7 5 2 Detach 2 | . . 1 . . 1 Swap 14 | . . 3 6 2 3 Drop 34 | . . 1 13 5 15 Fire 159 | . 4 8 50 54 43 Melee . | . . . . . . Ram . | . . . . . . Kick 1 | . . . 1 . . Crush 2 | . . . . 2 . Escape Stasis . | . . . . . . Rewire . | . . . . . . Trap 12 | . . 11 . . 1 Miscellaneous . | . . . . . . Route ------- -11/Junkyard -10/Materials -10/Mines (discovered 2 exits: *Mat x2) -9/Materials (discovered 2 exits: *Min / [*Sto]) -9/Mines (discovered 4 exits: [*Mat x2] / *Exi / [*Zio]) -9/Exiles History --------- Turn | Location | Event 1 | -11/Junkyard | Discovered new exit (range 0) 1 | -11/Junkyard | Entered Materials 37 | -10/Materials | Central database locked down 46 | -10/Materials | Discovered new exit (range 16) 71 | -10/Materials | Entered Mines 113 | -10/Mines | Received a Rocket Launcher from a helpful Derelict 148 | -10/Mines | Discovered new exit (range 6) 273 | -10/Mines | Learned Materials interactive machine intel 310 | -10/Mines | Build established: Mutant 347 | -10/Mines | Met a Derelict who couldn't figure out how to use a Trap Extractor 660 | -10/Mines | Discovered new exit (range 14) 688 | -10/Mines | Entered Materials 688 | -9/Materials | Evolved 2 slots: Propulsion x1, Utility x1 689 | -9/Materials | Loaded intel: 18 interactive machine locations 1062 | -9/Materials | Discovered new exit (range 17) 1072 | -9/Materials | Discovered new exit (range 17) 1308 | -9/Materials | Entered Mines 1309 | -9/Mines | Assembled infested the area 1314 | -9/Mines | Assisted by a Guerilla fighting off Assembled 1365 | -9/Mines | Crushed by falling debris 1365 | -9/Mines | System corruption reached 10% 1396 | -9/Mines | Lost 3 parts (1p1u1w) 1411 | -9/Mines | Discovered new exit (range 8) 1420 | -9/Mines | Learned location of Storage (-9) 1670 | -9/Mines | Learned 4 Materials zone layouts 1770 | -9/Mines | Learned Materials terminal intel 1848 | -9/Mines | Core integrity fell below 50% 1878 | -9/Mines | Lost 3 parts (2n1u) 2028 | -9/Mines | Discovered new exit (range 13) 2059 | -9/Mines | A Derelict revealed a hidden shortcut to a safe place 2103 | -9/Mines | Deemed a non-threat by the Exiles lab entrance 2104 | -9/Mines | Discovered new exit (range 5) 2107 | -9/Mines | Entered Exiles 2129 | -9/Exiles | Met 8R-AWN 2143 | -9/Exiles | Met EX-HEX 2316 | -9/Exiles | Met EX-BIN 2332 | -9/Exiles | Aligned with FarCom system 2333 | -9/Exiles | Given EX-Vault access code 2355 | -9/Exiles | Opened EX-Vault 2362 | -9/Exiles | Found Cloak of Protection 2364 | -9/Exiles | Found Field Lobotomy Kit 2385 | -9/Exiles | Warned to stay clear of 0b10 Research branches 2412 | -9/Exiles | Met EX-DEC 2417 | -9/Exiles | Learned location of Zion (-7) 2533 | -9/Exiles | Attacked by the Exiles 2670 | -9/Exiles | Core integrity fell below 20% 2686 | -9/Exiles | Found Prototype Ballistic Gun 2686 | -9/Exiles | Identified 8R-AWN's Boregun 2694 | -9/Exiles | Lost 3 parts (1u2w) 2719 | -9/Exiles | Destroyed by 8R-AWN with 8R-AWN's Boregun Last Messages --------------- 02705_ HV Slug penetrates Wall. 02705_ Penetrated by HV Slug. 02705_ HV Slug penetrates Wall. 02709_ HV Slug penetrates Machine. 02709_ HV Slug penetrates Wall. 02710_ HV Slug penetrates 8R-AWN. 02710_ HV Slug penetrates Wall. 02712_ Penetrated by HV Slug. 02712_ HV Slug penetrates Wall. 02713_ HV Slug penetrates 8R-AWN. 02713_ HV Slug penetrates Wall. 02714_ Wall collapses. 02715_ System corrupted: Component data lost. 02716_ Penetrated by HV Slug. 02716_ HV Slug penetrates Wall. 02716_ HV Slug penetrates 8R-AWN. 02716_ HV Slug penetrates Wall. 02718_ Wall collapses. 02719_ HV Slug penetrates Wall. 02719_ Penetrated by HV Slug. Map ----- +----------------------------------------------------+ | ?????????????????????????????????????????????????? | | ?????????????????????????????????????????????????? | | ?????????????????????????????????????????????????? | | ?????????????????????????????????????????????????? | | ?????????????????????????????????????????????????? | | ?????????????????????????????????????????????????? | | ?????????????????????????????????????????????????? | | ?????????????????????????????????????????????????? | | ?????????????????????????????????????????????????? | | ?????????????????????????????????????????????????? | | ?????????????????????????????????????????????????? | | ????????????????????????????????????????????????## | | ???????????????????????????????????????????????""" | | ???????????????????????????????????????????????""" | | ??????????????????????????????????????????????#""X | | ??????????????????????????????????????????????#" | | ??????????????????????????????????????????????#" | | ??????????????????????????????????????????????#""" | | ??????????????????????????##??????????????????##"# | | ?????????????????????##?#? #?????????????????????? | | ?????????????????????# # # #?????????????????????? | | ?????????????????????? # #?????????????????????? | | ?????? ??????????????##;;#;#?????????????????????? | | ?????? ######???????#!! ##????????????????????? | | ????? #""#??????# ;#????????????????????? | | ????? ??????#% %@ #?????????????????????? | | ?????" #????##!|! *##???????????####?????? | | ?????" ##### ! ;#??????????? """????? | | ??????# ##" !! # #??????????" """#???? | | ???????# #" /g#### #?????????" #???? | | ??????????# ## ## #???????"" #???? | | ???????????### "" #?# #??????"" "#???? | | ?????????????### !" #??# #????? ""????? | | ???????########" "##???# #?????" "?????? | | ???????# !""""" %##???# #????# #?????? | | ???????#! ### "##### ??### ###?### | | ???????#! "#?#;" ""#####X# #"###"" | | ???????#! ##?#;" % """""" | | ???????# !""""""###??##"# "" """ | | ???????##########?????#### " | | ?????????????????????????### | | ???????????????????????????### | | ?????????????????????????????## | | ??????????????????????????????## | | ???????????????????????????????##" | | ????????????????????????????????#""" | | ????????????????????????????????#" | | ????????????????????????????????"" "" | | ????????????????????????????????""" """# | | ????????????????????????????????"" """## | +----------------------------------------------------+ Best States ------------- Heat Dissipation 42 Energy Generation 14 Energy Capacity 265 Matter Stores 451 Matter Capacity 500 Sight Range 18 Terrain Scan Density 10 Cloak Strength 5 Armor Coverage 150 Evasion (%) 55 Targeting Accuracy 8 Recoil Reduction 3 Salvage Targeting 1 Item Schematics ----------------- None Robot Schematics ------------------ None Fabricated ------------ Nothing Alien Tech Used ----------------- None Achievements -------------- None Challenges ------------ None Game ------ Seed ThermicScatterThermoblaster Manual? 0 Play Time 00:26:11 Cumulative 389.0 hours Start 2023.04.08 @ 20:28:57 End 2023.04.08 @ 21:01:25 Sessions 1 Manual Loads 0 Difficulty Rogue Special Mode None Game No. 429 Rogue 429 Adventurer 0 Explorer 0 Win Type - Total 12 Types 8/0/3/1/0/0/0/0/0 Lore% 81 Gallery% 89 Achievement% 79 Wizard Run 0 Options --------- ASCII 0 Keyboard 0 Movement Numpad Keybinds 0 Fullscreen 1 Font 18/Terminus Map View 76x50 Tactical HUD 1 Map Filters NONE Filters NONE Steam 1 RUN: 307a8470-a4fb-4383-ac3a-ff0cf28bc42e